Workbook

Sheet паспорт
A1: ПАТ "УКРТРАНСГАЗ" | G1: ПАСПОРТ ФІЗИКО-ХІМІЧНИХ ПОКАЗНИКІВ ПРИРОДНОГО ГАЗУ № 60
A2: Філія "УМГ "Київтрансгаз" | G2: переданого Лубенським ЛВУМГ та прийнятого ПАТ "Полтавагаз"
A3: Лубенський п/м Лубенське ЛВУМГ | G3: Маршрут № 60
A4: Вимірювальна хіміко-аналітична лабораторія
A5: Свідоцтво № 199-15 чинно до 31.12.2018 р. | K5: по газопроводу "Глинськ-Розбишівськ - Шебелинка-Полтава-Київ " | V5: за період з | X5: 2017-05-01 | Z5: по | AA5: 2017-05-31
A7: Число місяця | B7: Компонентний склад, % мол. | N7: Фізико-хімічні показники газу обчислені на основі компонентного складу, 101,325 кПа | X7: Температура точки роси за вологою (Р = 3.92 МПа), ºС | Y7: Температура точки роси за вуглеводнями, ºС | Z7: Вміст сірководню, г/м3 | AA7: Вміст меркаптанової сірки, г/м3 | AB7: Вміст механічних домішок, г/м3
N8: Густина абсолютна, кг/м3,при 20 ºС, | O8: Температура вимірювання/згоряння при 20/25°С
B9: метан, С1 | C9: етан, С2 | D9: пропан, С3 | E9: ізо-бутан, і-С4 | F9: н-бутан, н-С4 | G9: нео-пентан, нео-С5 | H9: ізо-пентан, і-С5 | I9: н-пентан, н-С5 | J9: гексани та вищі, С6+ | K9: кисень, О2 | L9: азот, N2 | M9: діоксид вуглецю, CО2 | O9: Теплота згоряння нижча | R9: Теплота згоряння вища | U9: Число Воббе вище
O10: ккал/м3 | P10: МДж/м3 | Q10: кВт⋅год/м3 | R10: ккал/м3 | S10: МДж/м3 | T10: кВт⋅год/м3 | U10: ккал/м3 | V10: МДж/м3 | W10: кВт⋅год/м3
A11: 1 | O11: 8205 | P11: 34.35 | Q11: 9.541666667 | R11: 9083 | S11: 38.03 | T11: 10.56388889 | U11: 11268 | V11: 47.18 | W11: 13.1046829 | AC11: =SUM(B11:M11)+$K$42+$N$42 -> 0
A12: 2 | O12: 8205 | P12: 34.35 | Q12: 9.541666667 | R12: 9083 | S12: 38.03 | T12: 10.56388889 | U12: 11268 | V12: 47.18 | W12: 13.1046829 | AC12: 0
A13: 3 | B13: =[1]Лист1!$D$19 -> 86.259 | C13: =[1]Лист1!$D$20 -> 7.296 | D13: =[1]Лист1!$D$21 -> 0.882 | E13: =[1]Лист1!$D$22 -> 0.063 | F13: =[1]Лист1!$D$23 -> 0.162 | G13: =[1]Лист1!$D$24 -> - | H13: =[1]Лист1!$D$25 -> 0.045 | I13: =[1]Лист1!$D$26 -> 0.038 | J13: =[1]Лист1!$D$27 -> 0.085 | K13: =[1]Лист1!$D$28 -> 0.007 | L13: =[1]Лист1!$D$29 -> 1.512 | M13: =[1]Лист1!$D$30 -> 3.651 | N13: =[1]Лист1!$F$36 -> 0.781 | O13: =[1]Лист1!$F$38 -> 8225 | P13: =[1]Лист1!$F$37 -> 34.43 | Q13: =[1]Лист1!$F$43 -> 9.563888889 | R13: =[1]Лист1!$F$40 -> 9106 | S13: =[1]Лист1!$F$39 -> 38.12 | T13: =[1]Лист1!$F$44 -> 10.58888889 | U13: =[1]Лист1!$F$42 -> 11315 | V13: =[1]Лист1!$F$41 -> 47.35 | W13: =U13/859.8453 -> 13.1593439 | X13: -9.8 | Y13: -0.9 | AC13: 100 | AD13: =IF(AC13=100,"ОК"," ") -> ОК
A14: 4 | O14: =[1]Лист1!$F$38 -> 8225 | P14: =[1]Лист1!$F$37 -> 34.43 | Q14: =[1]Лист1!$F$43 -> 9.563888889 | R14: =[1]Лист1!$F$40 -> 9106 | S14: =[1]Лист1!$F$39 -> 38.12 | T14: =[1]Лист1!$F$44 -> 10.58888889 | U14: =[1]Лист1!$F$42 -> 11315 | V14: =[1]Лист1!$F$41 -> 47.35 | W14: =U14/859.8453 -> 13.1593439 | AC14: 0 | AD14: =IF(AC14=100,"ОК"," ") -> 
A15: 5 | O15: =[1]Лист1!$F$38 -> 8225 | P15: =[1]Лист1!$F$37 -> 34.43 | Q15: =[1]Лист1!$F$43 -> 9.563888889 | R15: =[1]Лист1!$F$40 -> 9106 | S15: =[1]Лист1!$F$39 -> 38.12 | T15: =[1]Лист1!$F$44 -> 10.58888889 | U15: =[1]Лист1!$F$42 -> 11315 | V15: =[1]Лист1!$F$41 -> 47.35 | W15: 13.1593439 | AC15: 0
A16: 6 | O16: =[1]Лист1!$F$38 -> 8225 | P16: =[1]Лист1!$F$37 -> 34.43 | Q16: =[1]Лист1!$F$43 -> 9.563888889 | R16: =[1]Лист1!$F$40 -> 9106 | S16: =[1]Лист1!$F$39 -> 38.12 | T16: =[1]Лист1!$F$44 -> 10.58888889 | U16: =[1]Лист1!$F$42 -> 11315 | V16: =[1]Лист1!$F$41 -> 47.35 | W16: 13.1593439 | AC16: 0
A17: 7 | O17: =[1]Лист1!$F$38 -> 8225 | P17: =[1]Лист1!$F$37 -> 34.43 | Q17: =[1]Лист1!$F$43 -> 9.563888889 | R17: =[1]Лист1!$F$40 -> 9106 | S17: =[1]Лист1!$F$39 -> 38.12 | T17: =[1]Лист1!$F$44 -> 10.58888889 | U17: =[1]Лист1!$F$42 -> 11315 | V17: =[1]Лист1!$F$41 -> 47.35 | W17: 13.1593439 | AC17: 0
A18: 8 | O18: =[1]Лист1!$F$38 -> 8225 | P18: =[1]Лист1!$F$37 -> 34.43 | Q18: =[1]Лист1!$F$43 -> 9.563888889 | R18: =[1]Лист1!$F$40 -> 9106 | S18: =[1]Лист1!$F$39 -> 38.12 | T18: =[1]Лист1!$F$44 -> 10.58888889 | U18: =[1]Лист1!$F$42 -> 11315 | V18: =[1]Лист1!$F$41 -> 47.35 | W18: 13.1593439 | AC18: 0
A19: 9 | O19: =[1]Лист1!$F$38 -> 8225 | P19: =[1]Лист1!$F$37 -> 34.43 | Q19: =[1]Лист1!$F$43 -> 9.563888889 | R19: =[1]Лист1!$F$40 -> 9106 | S19: =[1]Лист1!$F$39 -> 38.12 | T19: =[1]Лист1!$F$44 -> 10.58888889 | U19: =[1]Лист1!$F$42 -> 11315 | V19: =[1]Лист1!$F$41 -> 47.35 | W19: =U19/859.8453 -> 13.1593439 | AC19: 0
A20: 10 | B20: =[2]Лист1!$D$19 -> 85.867 | C20: =[2]Лист1!$D$20 -> 7.458 | D20: =[2]Лист1!$D$21 -> 0.868 | E20: =[2]Лист1!$D$22 -> 0.069 | F20: =[2]Лист1!$D$23 -> 0.173 | G20: =[2]Лист1!$D$24 -> - | H20: =[2]Лист1!$D$25 -> 0.049 | I20: =[2]Лист1!$D$26 -> 0.045 | J20: =[2]Лист1!$D$27 -> 0.109 | K20: =[2]Лист1!$D$28 -> 0.007 | L20: =[2]Лист1!$D$29 -> 1.536 | M20: =[2]Лист1!$D$30 -> 3.819 | N20: =[2]Лист1!$F$36 -> 0.784 | O20: =[2]Лист1!$F$38 -> 8229 | P20: =[2]Лист1!$F$37 -> 34.45 | Q20: =[2]Лист1!$F$43 -> 9.569444444 | R20: =[2]Лист1!$F$40 -> 9110 | S20: =[2]Лист1!$F$39 -> 38.15 | T20: =[2]Лист1!$F$44 -> 10.59722222 | U20: =[2]Лист1!$F$42 -> 11292 | V20: =[2]Лист1!$F$41 -> 47.28 | W20: =U20/859.8453 -> 13.1325949 | X20: -9.9 | Y20: -1.1 | AC20: 100 | AD20: ОК
A21: 11 | O21: =[2]Лист1!$F$38 -> 8229 | P21: =[2]Лист1!$F$37 -> 34.45 | Q21: =[2]Лист1!$F$43 -> 9.569444444 | R21: =[2]Лист1!$F$40 -> 9110 | S21: =[2]Лист1!$F$39 -> 38.15 | T21: =[2]Лист1!$F$44 -> 10.59722222 | U21: =[2]Лист1!$F$42 -> 11292 | V21: =[2]Лист1!$F$41 -> 47.28 | W21: =U21/859.8453 -> 13.1325949 | AC21: 0
A22: 12 | O22: =[2]Лист1!$F$38 -> 8229 | P22: =[2]Лист1!$F$37 -> 34.45 | Q22: =[2]Лист1!$F$43 -> 9.569444444 | R22: =[2]Лист1!$F$40 -> 9110 | S22: =[2]Лист1!$F$39 -> 38.15 | T22: =[2]Лист1!$F$44 -> 10.59722222 | U22: =[2]Лист1!$F$42 -> 11292 | V22: =[2]Лист1!$F$41 -> 47.28 | W22: 13.1325949 | AC22: 0
A23: 13 | O23: =[2]Лист1!$F$38 -> 8229 | P23: =[2]Лист1!$F$37 -> 34.45 | Q23: =[2]Лист1!$F$43 -> 9.569444444 | R23: =[2]Лист1!$F$40 -> 9110 | S23: =[2]Лист1!$F$39 -> 38.15 | T23: =[2]Лист1!$F$44 -> 10.59722222 | U23: =[2]Лист1!$F$42 -> 11292 | V23: =[2]Лист1!$F$41 -> 47.28 | W23: 13.1325949 | AC23: 0
A24: 14 | O24: =[2]Лист1!$F$38 -> 8229 | P24: =[2]Лист1!$F$37 -> 34.45 | Q24: =[2]Лист1!$F$43 -> 9.569444444 | R24: =[2]Лист1!$F$40 -> 9110 | S24: =[2]Лист1!$F$39 -> 38.15 | T24: =[2]Лист1!$F$44 -> 10.59722222 | U24: =[2]Лист1!$F$42 -> 11292 | V24: =[2]Лист1!$F$41 -> 47.28 | W24: 13.1325949 | AC24: 0
A25: 15 | B25: =[3]Лист1!$D$19 -> 85.573 | C25: =[3]Лист1!$D$20 -> 7.758 | D25: =[3]Лист1!$D$21 -> 0.857 | E25: =[3]Лист1!$D$22 -> 0.061 | F25: =[3]Лист1!$D$23 -> 0.154 | G25: =[3]Лист1!$D$24 -> - | H25: =[3]Лист1!$D$25 -> 0.044 | I25: =[3]Лист1!$D$26 -> 0.04 | J25: =[3]Лист1!$D$27 -> 0.095 | K25: =[3]Лист1!$D$28 -> 0.006 | L25: =[3]Лист1!$D$29 -> 1.555 | M25: =[3]Лист1!$D$30 -> 3.857 | N25: =[3]Лист1!$F$36 -> 0.786 | O25: =[3]Лист1!$F$38 -> 8231 | P25: =[3]Лист1!$F$37 -> 34.46 | Q25: =[3]Лист1!$F$43 -> 9.572222222 | R25: =[3]Лист1!$F$40 -> 9112 | S25: =[3]Лист1!$F$39 -> 38.15 | T25: =[3]Лист1!$F$44 -> 10.59722222 | U25: =[3]Лист1!$F$42 -> 11286 | V25: =[3]Лист1!$F$41 -> 47.26 | W25: =U25/859.8453 -> 13.1256169 | X25: -10.5 | Y25: -2.5 | Z25: 0.0006 | AA25: відсут. | AB25: відсут. | AC25: 100 | AD25: ОК
A26: 16 | O26: =[3]Лист1!$F$38 -> 8231 | P26: =[3]Лист1!$F$37 -> 34.46 | Q26: =[3]Лист1!$F$43 -> 9.572222222 | R26: =[3]Лист1!$F$40 -> 9112 | S26: =[3]Лист1!$F$39 -> 38.15 | T26: =[3]Лист1!$F$44 -> 10.59722222 | U26: =[3]Лист1!$F$42 -> 11286 | V26: =[3]Лист1!$F$41 -> 47.26 | W26: =U26/859.8453 -> 13.1256169 | AC26: 0
A27: 17 | O27: =[3]Лист1!$F$38 -> 8231 | P27: =[3]Лист1!$F$37 -> 34.46 | Q27: =[3]Лист1!$F$43 -> 9.572222222 | R27: =[3]Лист1!$F$40 -> 9112 | S27: =[3]Лист1!$F$39 -> 38.15 | T27: =[3]Лист1!$F$44 -> 10.59722222 | U27: =[3]Лист1!$F$42 -> 11286 | V27: =[3]Лист1!$F$41 -> 47.26 | W27: 13.1256169 | AC27: 0
A28: 18 | O28: =[3]Лист1!$F$38 -> 8231 | P28: =[3]Лист1!$F$37 -> 34.46 | Q28: =[3]Лист1!$F$43 -> 9.572222222 | R28: =[3]Лист1!$F$40 -> 9112 | S28: =[3]Лист1!$F$39 -> 38.15 | T28: =[3]Лист1!$F$44 -> 10.59722222 | U28: =[3]Лист1!$F$42 -> 11286 | V28: =[3]Лист1!$F$41 -> 47.26 | W28: 13.1256169 | AC28: 0
A29: 19 | O29: =[3]Лист1!$F$38 -> 8231 | P29: =[3]Лист1!$F$37 -> 34.46 | Q29: =[3]Лист1!$F$43 -> 9.572222222 | R29: =[3]Лист1!$F$40 -> 9112 | S29: =[3]Лист1!$F$39 -> 38.15 | T29: =[3]Лист1!$F$44 -> 10.59722222 | U29: =[3]Лист1!$F$42 -> 11286 | V29: =[3]Лист1!$F$41 -> 47.26 | W29: 13.1256169 | AC29: 0
A30: 20 | O30: =[3]Лист1!$F$38 -> 8231 | P30: =[3]Лист1!$F$37 -> 34.46 | Q30: =[3]Лист1!$F$43 -> 9.572222222 | R30: =[3]Лист1!$F$40 -> 9112 | S30: =[3]Лист1!$F$39 -> 38.15 | T30: =[3]Лист1!$F$44 -> 10.59722222 | U30: =[3]Лист1!$F$42 -> 11286 | V30: =[3]Лист1!$F$41 -> 47.26 | W30: 13.1256169 | AC30: 0 | AD30: =IF(AC30=100,"ОК"," ") -> 
A31: 21 | O31: =[3]Лист1!$F$38 -> 8231 | P31: =[3]Лист1!$F$37 -> 34.46 | Q31: =[3]Лист1!$F$43 -> 9.572222222 | R31: =[3]Лист1!$F$40 -> 9112 | S31: =[3]Лист1!$F$39 -> 38.15 | T31: =[3]Лист1!$F$44 -> 10.59722222 | U31: =[3]Лист1!$F$42 -> 11286 | V31: =[3]Лист1!$F$41 -> 47.26 | W31: 13.1256169 | AC31: 0
A32: 22 | B32: =[4]Лист1!$D$19 -> 85.913 | C32: =[4]Лист1!$D$20 -> 7.568 | D32: =[4]Лист1!$D$21 -> 1.321 | E32: =[4]Лист1!$D$22 -> 0.087 | F32: =[4]Лист1!$D$23 -> 0.195 | G32: =[4]Лист1!$D$24 -> - | H32: =[4]Лист1!$D$25 -> 0.054 | I32: =[4]Лист1!$D$26 -> 0.049 | J32: =[4]Лист1!$D$27 -> 0.112 | K32: =[4]Лист1!$D$28 -> 0.002 | L32: =[4]Лист1!$D$29 -> 1.178 | M32: =[4]Лист1!$D$30 -> 3.521 | N32: =[4]Лист1!$F$36 -> 0.786 | O32: =[4]Лист1!$F$38 -> 8357 | P32: =[4]Лист1!$F$37 -> 34.99 | Q32: =[4]Лист1!$F$43 -> 9.719444444 | R32: =[4]Лист1!$F$40 -> 9248 | S32: =[4]Лист1!$F$39 -> 38.72 | T32: =[4]Лист1!$F$44 -> 10.75555556 | U32: =[4]Лист1!$F$42 -> 11451 | V32: =[4]Лист1!$F$41 -> 47.95 | W32: =U32/859.8453 -> 13.31751188 | X32: -8.3 | Y32: 6.4 | AC32: 100 | AD32: ОК
A33: 23 | B33: 88.0114 | C33: 5.393 | D33: 1.434 | E33: 0.151 | F33: 0.342 | G33: 0.0046 | H33: 0.066 | I33: 0.086 | J33: 0.077 | K33: 0.003 | L33: 0.365 | M33: 4.067 | N33: 0.784 | O33: 8331 | P33: 34.88 | Q33: =O33/859.8453 -> 9.688952187 | R33: 9222 | S33: 38.61 | T33: =R33/859.8453 -> 10.7251851 | U33: 11434 | V33: 47.87 | W33: 13.29774088 | AC33: 100 | AD33: =IF(AC33=100,"ОК"," ") -> ОК
A34: 24 | O34: 8331 | P34: 34.88 | Q34: =O34/859.8453 -> 9.688952187 | R34: 9222 | S34: 38.61 | T34: =R34/859.8453 -> 10.7251851 | U34: 11434 | V34: 47.87 | W34: =U34/859.8453 -> 13.29774088 | AC34: 0
A35: 25 | O35: 8331 | P35: 34.88 | Q35: 9.688952187 | R35: 9222 | S35: 38.61 | T35: 10.7251851 | U35: 11434 | V35: 47.87 | W35: 13.29774088 | AC35: 0
A36: 26 | O36: =[4]Лист1!$F$38 -> 8357 | P36: =[4]Лист1!$F$37 -> 34.99 | Q36: =[4]Лист1!$F$43 -> 9.719444444 | R36: =[4]Лист1!$F$40 -> 9248 | S36: =[4]Лист1!$F$39 -> 38.72 | T36: =[4]Лист1!$F$44 -> 10.75555556 | U36: =[4]Лист1!$F$42 -> 11451 | V36: =[4]Лист1!$F$41 -> 47.95 | W36: =U36/859.8453 -> 13.31751188 | AC36: 0
A37: 27 | O37: =[4]Лист1!$F$38 -> 8357 | P37: =[4]Лист1!$F$37 -> 34.99 | Q37: =[4]Лист1!$F$43 -> 9.719444444 | R37: =[4]Лист1!$F$40 -> 9248 | S37: =[4]Лист1!$F$39 -> 38.72 | T37: =[4]Лист1!$F$44 -> 10.75555556 | U37: =[4]Лист1!$F$42 -> 11451 | V37: =[4]Лист1!$F$41 -> 47.95 | W37: 13.31751188 | AC37: 0
A38: 28 | O38: =[4]Лист1!$F$38 -> 8357 | P38: =[4]Лист1!$F$37 -> 34.99 | Q38: =[4]Лист1!$F$43 -> 9.719444444 | R38: =[4]Лист1!$F$40 -> 9248 | S38: =[4]Лист1!$F$39 -> 38.72 | T38: =[4]Лист1!$F$44 -> 10.75555556 | U38: =[4]Лист1!$F$42 -> 11451 | V38: =[4]Лист1!$F$41 -> 47.95 | W38: 13.31751188 | AC38: 0
A39: 29 | B39: =[5]Лист1!$D$19 -> 85.035 | C39: =[5]Лист1!$D$20 -> 7.764 | D39: =[5]Лист1!$D$21 -> 1.367 | E39: =[5]Лист1!$D$22 -> 0.05 | F39: =[5]Лист1!$D$23 -> 0.143 | G39: =[5]Лист1!$D$24 -> - | H39: =[5]Лист1!$D$25 -> 0.064 | I39: =[5]Лист1!$D$26 -> 0.064 | J39: =[5]Лист1!$D$27 -> 0.155 | K39: =[5]Лист1!$D$28 -> 0.008 | L39: =[5]Лист1!$D$29 -> 1.638 | M39: =[5]Лист1!$D$30 -> 3.712 | N39: =[5]Лист1!$F$36 -> 0.793 | O39: =[5]Лист1!$F$38 -> 8324 | P39: =[5]Лист1!$F$37 -> 34.85 | Q39: =[5]Лист1!$F$43 -> 9.680555556 | R39: =[5]Лист1!$F$40 -> 9211 | S39: =[5]Лист1!$F$39 -> 38.57 | T39: =[5]Лист1!$F$44 -> 10.71388889 | U39: =[5]Лист1!$F$42 -> 11358 | V39: =[5]Лист1!$F$41 -> 47.56 | W39: =U39/859.8453 -> 13.20935289 | X39: -8.3 | Y39: -0.9 | AC39: 100 | AD39: ОК
A40: 30 | O40: =[5]Лист1!$F$38 -> 8324 | P40: =[5]Лист1!$F$37 -> 34.85 | Q40: =[5]Лист1!$F$43 -> 9.680555556 | R40: =[5]Лист1!$F$40 -> 9211 | S40: =[5]Лист1!$F$39 -> 38.57 | T40: =[5]Лист1!$F$44 -> 10.71388889 | U40: =[5]Лист1!$F$42 -> 11358 | V40: =[5]Лист1!$F$41 -> 47.56 | W40: =U40/859.8453 -> 13.20935289 | AC40: 0
A41: 31 | O41: =[5]Лист1!$F$38 -> 8324 | P41: =[5]Лист1!$F$37 -> 34.85 | Q41: =[5]Лист1!$F$43 -> 9.680555556 | R41: =[5]Лист1!$F$40 -> 9211 | S41: =[5]Лист1!$F$39 -> 38.57 | T41: =[5]Лист1!$F$44 -> 10.71388889 | U41: =[5]Лист1!$F$42 -> 11358 | V41: =[5]Лист1!$F$41 -> 47.56 | W41: 13.20935289 | AC41: 0
A42: Рівень одоризації відповідає чинним нормативним документам | O42: 8256.956419 | P42: 34.56770423 | Q42: 9.602140064 | R42: 9140.004303 | S42: 38.26887719 | T42: 10.63024366
H43: Середньозважене значення теплоти згоряння:
B46: Головний інженер Лубенського ЛВУМГ Сирота В.П. 01.06.2017 року
C47: Підрозділу підприємства, якому підпорядкована лабораторія | O47: прізвище | R47: підпис | V47: дата
B48: Завідувач лабораторією Лубенського ЛВУМГ Алєксєєнко Н.А. 01.06.2017 рокуроку
C49: Лабораторія, де здійснювалось вимірювання газу | O49: прізвище | R49: підпис | V49: дата
B50: Начальник служби ГВ та М Шило О.Є. 01.06.2017 року
C51: Підрозділу, відповідального за облік газу за маршрутом | O51: прізвище | R51: підпис | V51: дата

Sheet розрахунок
A2: Додаток до Паспорту фізико-хімічних показників природного газу по маршруту № 60
A4: Число місяця | B4: Теплота згоряння вища, МДж/м3 | C4: Полтавська | E4: Загальний обсяг газу, м3
C5: Обсяг газу переданого за добу, м3
C6: ГРС Н.Бодаква | D6: ГРС Комишня
A7: 1 | B7: 38.03 | C7: 1078.8 | D7: 1014.5 | E7: =SUM(C7:D7) -> 2093.3
A8: 2 | B8: 38.03 | C8: 994.2 | D8: 1026.6 | E8: 2020.8
A9: 3 | B9: =[1]Лист1!$F$39 -> 38.12 | C9: 1081.4 | D9: 1032.4 | E9: 2113.8
A10: 4 | B10: =[1]Лист1!$F$39 -> 38.12 | C10: 1052.2 | D10: 1007 | E10: 2059.2
A11: 5 | B11: =[1]Лист1!$F$39 -> 38.12 | C11: 1128.1 | D11: 1101.5 | E11: 2229.6
A12: 6 | B12: =[1]Лист1!$F$39 -> 38.12 | C12: 1077.4 | D12: 1026.1 | E12: 2103.5
A13: 7 | B13: =[1]Лист1!$F$39 -> 38.12 | C13: 1022 | D13: 1002.7 | E13: 2024.7
A14: 8 | B14: =[1]Лист1!$F$39 -> 38.12 | C14: 1026.8 | D14: 1046.6 | E14: 2073.4
A15: 9 | B15: =[1]Лист1!$F$39 -> 38.12 | C15: 1206.3 | D15: 1177.3 | E15: 2383.6
A16: 10 | B16: =[2]Лист1!$F$39 -> 38.15 | C16: 1702.2 | D16: 1808.1 | E16: 3510.3
A17: 11 | B17: =[2]Лист1!$F$39 -> 38.15 | C17: 1614.9 | D17: 1696.1 | E17: 3311
A18: 12 | B18: =[2]Лист1!$F$39 -> 38.15 | C18: 1501.7 | D18: 1914.7 | E18: 3416.4
A19: 13 | B19: =[2]Лист1!$F$39 -> 38.15 | C19: 1696.1 | D19: 2403.4 | E19: 4099.5
A20: 14 | B20: =[2]Лист1!$F$39 -> 38.15 | C20: 1643.9 | D20: 2071.7 | E20: 3715.6
A21: 15 | B21: =[3]Лист1!$F$39 -> 38.15 | C21: 1197.7 | D21: 1256 | E21: 2453.7
A22: 16 | B22: =[3]Лист1!$F$39 -> 38.15 | C22: 1046.6 | D22: 1052.7 | E22: 2099.3
A23: 17 | B23: =[3]Лист1!$F$39 -> 38.15 | C23: 1192.4 | D23: 1261.6 | E23: 2454
A24: 18 | B24: =[3]Лист1!$F$39 -> 38.15 | C24: 1333.3 | D24: 1561.2 | E24: 2894.5
A25: 19 | B25: =[3]Лист1!$F$39 -> 38.15 | C25: 1428.9 | D25: 1691.8 | E25: 3120.7
A26: 20 | B26: =[3]Лист1!$F$39 -> 38.15 | C26: 1181.6 | D26: 1492.6 | E26: 2674.2
A27: 21 | B27: =[3]Лист1!$F$39 -> 38.15 | C27: 1156.1 | D27: 1226.3 | E27: 2382.4
A28: 22 | B28: =[4]Лист1!$F$39 -> 38.72 | C28: 1066.1 | D28: 1086.9 | E28: 2153
A29: 23 | B29: =[4]Лист1!$F$39 -> 38.72 | C29: 932.4 | D29: 941 | E29: 1873.4
A30: 24 | B30: =[4]Лист1!$F$39 -> 38.72 | C30: 930.7 | D30: 942.4 | E30: 1873.1
A31: 25 | B31: =[4]Лист1!$F$39 -> 38.72 | C31: 911.3 | D31: 871 | E31: 1782.3
A32: 26 | B32: =[4]Лист1!$F$39 -> 38.72 | C32: 890.3 | D32: 889.6 | E32: 1779.9
A33: 27 | B33: =[4]Лист1!$F$39 -> 38.72 | C33: 908.5 | D33: 943.4 | E33: 1851.9
A34: 28 | B34: =[4]Лист1!$F$39 -> 38.72 | C34: 955.8 | D34: 971.9 | E34: 1927.7
A35: 29 | B35: =[5]Лист1!$F$39 -> 38.57 | C35: 854.3 | D35: 873.6 | E35: 1727.9
A36: 30 | B36: =[5]Лист1!$F$39 -> 38.57 | C36: 842.3 | D36: 855.9 | E36: 1698.2
A37: 31 | B37: =[5]Лист1!$F$39 -> 38.57 | C37: 833.8 | D37: 840.6 | E37: 1674.4
A38: Загальний обсяг газу, м3 | C38: =SUM(C7:C37) -> 35488.1 | D38: =SUM(D7:D37) -> 38087.2 | E38: =SUM(E7:E37) -> 73575.3
A39: Енергія, МДж | C39: =SUMPRODUCT(B7:B37,C7:C37) -> 1358216.404 | D39: =SUMPRODUCT(B7:B37,D7:D37) -> 1457427.716 | E39: =SUMPRODUCT(B7:B37,E7:E37) -> 2815644.12
A40: Теплота згоряння (середньозважене значення за місяць), МДж/м³ | C40: 38.27244637 | D40: 38.26555158 | E40: 38.26887719
A41: Теплота згоряння (середньозважене значення за місяць), ккал/м³ | C41: 9141.216898 | D41: 9139.570105 | E41: 9140.364415
A42: Теплота згоряння (середньозважене значення за місяць), кВт*год./м³ | C42: 10.6312351 | D42: 10.62931988 | E42: 10.63024366

Sheet додаток
A2: Додаток до Паспорту фізико-хімічних показників природного газу № 60
A4: Область | B4: ГРС, прямий споживач | C4: Cередньозважене значення вищої теплоти згоряння
C5: МДж/м³ | D5: ккал/м³ | E5: кВт*год./м³
A6: Полтавська область | B6: ГРС Н.Бодаква | C6: 38.27244637 | D6: 9141.216898 | E6: 10.6312351
B7: ГРС Комишня | C7: 38.26555158 | D7: 9139.570105 | E7: 10.62931988
A8: Середньозважене значення вищої теплоти згоряння по маршруту № 60 | C8: 38.26887719 | D8: 9140.364415 | E8: 10.63024366
A12: Головний інженер Лубенського ЛВУМГ Сирота В.П. | F12: 01.06.2017 року
A13: Підрозділу підприємства, якому підпорядкована лабораторія | D13: прізвище | E13: підпис | F13: дата
A14: Завідувач лабораторією Лубенського ЛВУМГ Алєксєєнко Н.А. | F14: =F12 -> 01.06.2017 року
A15: Лабораторія, де здійснювалось вимірювання газу | D15: прізвище | E15: підпис | F15: дата
A16: Начальник служби ГВ та М Шило О.Є | F16: =F12 -> 01.06.2017 року
A17: Підрозділу, відповідального за облік газу за маршрутом | D17: прізвище | E17: підпис | F17: дата

Sheet variablesList (hidden)
A1: 3 | B1: x:\gaysin | C1: 10, 11, 24, 25, 127, 128, 132, 180, 207, 215 | D1: x:\
B2: x:\Illinci
B3: x:\Talne
